[Event "Titled Tuesday Blitz October 25 Late 2022"]
[White "Boruchovsky, Avital"]
[Black "Borisova, Ekaterina"]
[WhiteFideId "2800055"]
[BlackFideId "34124184"]
[WhiteElo "2466"]
[BlackElo "2134"]
[Result "1-0"]
[Round "02"]
[TimeControl "180+1"]
[Date "2022.10.26"]
[WhiteClock "0:01:22"]
[BlackClock "0:00:10"]

1. c4 {[%clk 0:03:00]}  e6 {[%clk 0:02:59]} 2. Nc3 {[%clk 0:03:00]}  Nf6 {[%clk 0:02:59]} 3. e4 {[%clk 0:02:59]}  d5 {[%clk 0:03:00]} 4. cxd5 {[%clk 0:02:59]}  exd5 {[%clk 0:03:00]} 5. e5 {[%clk 0:02:59]}  Ne4 {[%clk 0:02:57]} 6. d3 {[%clk 0:02:59]}  Nxc3 {[%clk 0:02:57]} 7. bxc3 {[%clk 0:03:00]}  c5 {[%clk 0:02:57]} 8. d4 {[%clk 0:02:58]}  Nc6 {[%clk 0:02:54]} 9. Nf3 {[%clk 0:02:58]}  Qa5 {[%clk 0:02:05]} 10. Bd2 {[%clk 0:02:57]}  Bf5 {[%clk 0:02:05]} 11. Qb3 {[%clk 0:02:30]}  Be6 {[%clk 0:01:50]} 12. Qxb7 {[%clk 0:02:26]}  Rc8 {[%clk 0:01:48]} 13. Bb5 {[%clk 0:02:19]}  Bd7 {[%clk 0:01:27]} 14. c4 {[%clk 0:01:38]}  Qd8 {[%clk 0:01:22]} 15. cxd5 {[%clk 0:01:31]}  Nxd4 {[%clk 0:00:20]} 16. Nxd4 {[%clk 0:01:29]}  cxd4 {[%clk 0:00:17]} 17. e6 {[%clk 0:01:25]}  fxe6 {[%clk 0:00:11]} 18. dxe6 {[%clk 0:01:23]}  Bxb5 {[%clk 0:00:10]} 19. Qf7# {[%clk 0:01:22]} 1-0


[Site "https://www.chess.com"]

[Event "Titled Tuesday Blitz October 25 Late 2022"]
[White "Butolo, Alexandru-Mircea"]
[Black "Mikhalsky, Vladimir"]
[WhiteFideId "1261649"]
[BlackFideId "14144352"]
[WhiteElo "1897"]
[BlackElo "2271"]
[Result "1/2-1/2"]
[Round "02"]
[TimeControl "180+1"]
[Date "2022.10.26"]
[WhiteClock "0:02:39"]
[BlackClock "0:01:52"]

1. d4 {[%clk 0:03:00]}  Nf6 {[%clk 0:02:40]} 2. Bf4 {[%clk 0:03:00]}  c5 {[%clk 0:02:37]} 3. e3 {[%clk 0:02:59]}  Qb6 {[%clk 0:02:36]} 4. Na3 {[%clk 0:02:58]}  Qxb2 {[%clk 0:02:34]} 5. Nb5 {[%clk 0:02:56]}  Na6 {[%clk 0:02:26]} 6. Rb1 {[%clk 0:02:55]}  Qxa2 {[%clk 0:02:26]} 7. Ra1 {[%clk 0:02:47]}  Qb2 {[%clk 0:02:21]} 8. Rb1 {[%clk 0:02:40]}  Qa2 {[%clk 0:02:20]} 9. Ra1 {[%clk 0:02:40]}  Qb2 {[%clk 0:01:52]} 10. Rb1 {[%clk 0:02:39]}  Qa2 {[%clk 0:01:52]} 1/2-1/2


[Site "https://www.chess.com"]

[Event "Titled Tuesday Blitz October 25 Late 2022"]
[White "D`Arruda, Ricardo D."]
[Black "Iliaguev, Nisim"]
[WhiteFideId "100692"]
[BlackFideId "2817276"]
[WhiteElo "2449"]
[BlackElo "2264"]
[Result "1/2-1/2"]
[Round "02"]
[TimeControl "180+1"]
[Date "2022.10.26"]
[WhiteClock "0:00:15"]
[BlackClock "0:00:47"]

1. d4 {[%clk 0:03:00]}  Nf6 {[%clk 0:03:00]} 2. Nf3 {[%clk 0:03:00]}  e6 {[%clk 0:02:59]} 3. c3 {[%clk 0:02:57]}  c5 {[%clk 0:02:59]} 4. e3 {[%clk 0:02:56]}  Nc6 {[%clk 0:03:00]} 5. Nbd2 {[%clk 0:02:56]}  Be7 {[%clk 0:03:00]} 6. g3 {[%clk 0:02:56]}  O-O {[%clk 0:03:00]} 7. Bg2 {[%clk 0:02:56]}  d5 {[%clk 0:03:00]} 8. O-O {[%clk 0:02:56]}  b6 {[%clk 0:03:01]} 9. Re1 {[%clk 0:02:53]}  Bb7 {[%clk 0:03:01]} 10. Ne5 {[%clk 0:02:53]}  Nxe5 {[%clk 0:03:00]} 11. dxe5 {[%clk 0:02:54]}  Nd7 {[%clk 0:03:01]} 12. f4 {[%clk 0:02:54]}  c4 {[%clk 0:02:57]} 13. e4 {[%clk 0:02:39]}  Nc5 {[%clk 0:02:55]} 14. exd5 {[%clk 0:02:34]}  Bxd5 {[%clk 0:02:54]} 15. Nf3 {[%clk 0:02:19]}  Nd3 {[%clk 0:02:51]} 16. Re2 {[%clk 0:02:19]}  Qc7 {[%clk 0:02:46]} 17. Be3 {[%clk 0:02:09]}  Rad8 {[%clk 0:02:42]} 18. Qc2 {[%clk 0:02:05]}  Qb7 {[%clk 0:02:33]} 19. Ne1 {[%clk 0:02:00]}  Bxg2 {[%clk 0:02:32]} 20. Rxg2 {[%clk 0:01:56]}  Bc5 {[%clk 0:02:25]} 21. Bxc5 {[%clk 0:01:54]}  Nxc5 {[%clk 0:02:26]} 22. Rd2 {[%clk 0:01:51]}  h5 {[%clk 0:02:20]} 23. Rad1 {[%clk 0:01:49]}  Rxd2 {[%clk 0:02:20]} 24. Qxd2 {[%clk 0:01:48]}  h4 {[%clk 0:02:05]} 25. Qg2 {[%clk 0:01:48]}  Qa6 {[%clk 0:01:56]} 26. a3 {[%clk 0:01:24]}  Nd3 {[%clk 0:01:56]} 27. Nxd3 {[%clk 0:01:19]}  cxd3 {[%clk 0:01:57]} 28. gxh4 {[%clk 0:01:17]}  Qc4 {[%clk 0:01:57]} 29. Qf2 {[%clk 0:01:16]}  Rd8 {[%clk 0:01:53]} 30. h5 {[%clk 0:01:14]}  Qe4 {[%clk 0:01:52]} 31. Rd2 {[%clk 0:01:11]}  Qf5 {[%clk 0:01:48]} 32. Qf3 {[%clk 0:01:07]}  b5 {[%clk 0:01:45]} 33. h3 {[%clk 0:01:04]}  a5 {[%clk 0:01:45]} 34. Kh2 {[%clk 0:01:01]}  Rd5 {[%clk 0:01:33]} 35. Kg3 {[%clk 0:00:57]}  Kh7 {[%clk 0:01:33]} 36. Kf2 {[%clk 0:00:52]}  b4 {[%clk 0:01:15]} 37. axb4 {[%clk 0:00:51]}  axb4 {[%clk 0:01:16]} 38. Ke3 {[%clk 0:00:49]}  bxc3 {[%clk 0:01:12]} 39. bxc3 {[%clk 0:00:50]}  f6 {[%clk 0:00:58]} 40. Qe4 {[%clk 0:00:31]}  fxe5 {[%clk 0:00:53]} 41. Qxf5+ {[%clk 0:00:30]}  exf5 {[%clk 0:00:53]} 42. fxe5 {[%clk 0:00:28]}  Rxe5+ {[%clk 0:00:49]} 43. Kxd3 {[%clk 0:00:27]}  f4 {[%clk 0:00:50]} 44. Rf2 {[%clk 0:00:19]}  Rxh5 {[%clk 0:00:49]} 45. Rxf4 {[%clk 0:00:18]}  Rxh3+ {[%clk 0:00:49]} 46. Kd4 {[%clk 0:00:16]}  g5 {[%clk 0:00:50]} 47. Rf1 {[%clk 0:00:15]}  Kg6 {[%clk 0:00:47]} 48. c4 {[%clk 0:00:16]}  Rh2 {[%clk 0:00:47]} 49. c5 {[%clk 0:00:16]}  g4 {[%clk 0:00:44]} 50. Kd5 {[%clk 0:00:16]}  Rd2+ {[%clk 0:00:44]} 51. Ke6 {[%clk 0:00:15]}  Rc2 {[%clk 0:00:44]} 52. Kd6 {[%clk 0:00:15]}  Kg5 {[%clk 0:00:45]} 53. c6 {[%clk 0:00:15]}  g3 {[%clk 0:00:45]} 54. c7 {[%clk 0:00:14]}  Kg4 {[%clk 0:00:46]} 55. Kd7 {[%clk 0:00:14]}  g2 {[%clk 0:00:46]} 56. Rg1 {[%clk 0:00:14]}  Kg3 {[%clk 0:00:47]} 57. Rxg2+ {[%clk 0:00:14]}  Kxg2 {[%clk 0:00:46]} 58. c8=Q {[%clk 0:00:14]}  Rxc8 {[%clk 0:00:47]} 59. Kxc8 {[%clk 0:00:15]} 1/2-1/2


[Site "https://www.chess.com"]

[Event "Titled Tuesday Blitz October 25 Late 2022"]
[White "Dilanyan, Grigor"]
[Black "Szente Varga, Fruzsina"]
[WhiteFideId "13303570"]
[BlackFideId "712264"]
[WhiteElo "2264"]
[BlackElo "1994"]
[Result "1-0"]
[Round "02"]
[TimeControl "180+1"]
[Date "2022.10.26"]
[WhiteClock "0:00:53"]
[BlackClock "0:00:11"]

1. b3 {[%clk 0:03:00]}  e5 {[%clk 0:02:52]} 2. Bb2 {[%clk 0:02:42]}  Nc6 {[%clk 0:02:52]} 3. g3 {[%clk 0:02:39]}  d5 {[%clk 0:02:52]} 4. Bg2 {[%clk 0:02:39]}  Nf6 {[%clk 0:02:52]} 5. h4 {[%clk 0:02:38]}  Bc5 {[%clk 0:02:49]} 6. a4 {[%clk 0:02:39]}  Ng4 {[%clk 0:02:42]} 7. e3 {[%clk 0:02:39]}  O-O {[%clk 0:02:36]} 8. Nf3 {[%clk 0:02:35]}  d4 {[%clk 0:02:33]} 9. O-O {[%clk 0:02:34]}  f5 {[%clk 0:02:19]} 10. exd4 {[%clk 0:02:28]}  Nxd4 {[%clk 0:02:15]} 11. Nc3 {[%clk 0:02:23]}  f4 {[%clk 0:01:50]} 12. Ne4 {[%clk 0:02:18]}  Nxf3+ {[%clk 0:01:05]} 13. Qxf3 {[%clk 0:01:53]}  Bd4 {[%clk 0:00:46]} 14. c3 {[%clk 0:01:49]}  Bxf2+ {[%clk 0:00:27]} 15. Rxf2 {[%clk 0:01:45]}  Nxf2 {[%clk 0:00:24]} 16. Qxf2 {[%clk 0:01:45]}  fxg3 {[%clk 0:00:24]} 17. Qxg3 {[%clk 0:01:45]}  Bf5 {[%clk 0:00:24]} 18. c4 {[%clk 0:01:34]}  Qe7 {[%clk 0:00:19]} 19. Bxe5 {[%clk 0:01:30]}  Rae8 {[%clk 0:00:18]} 20. d4 {[%clk 0:01:28]}  Bxe4 {[%clk 0:00:16]} 21. Bxe4 {[%clk 0:01:27]}  c5 {[%clk 0:00:17]} 22. Bd5+ {[%clk 0:01:01]}  Kh8 {[%clk 0:00:17]} 23. Bd6 {[%clk 0:01:01]}  Qe2 {[%clk 0:00:14]} 24. Bxf8 {[%clk 0:00:59]}  Rxf8 {[%clk 0:00:15]} 25. dxc5 {[%clk 0:00:58]}  Qd2 {[%clk 0:00:12]} 26. Re1 {[%clk 0:00:57]}  Qd4+ {[%clk 0:00:12]} 27. Qe3 {[%clk 0:00:55]}  Qxh4 {[%clk 0:00:11]} 28. Qe7 {[%clk 0:00:54]}  Qg4+ {[%clk 0:00:11]} 29. Bg2 {[%clk 0:00:54]}  Qf5 {[%clk 0:00:11]} 30. Rf1 {[%clk 0:00:53]} 1-0


[Site "https://www.chess.com"]

[Event "Titled Tuesday Blitz October 25 Late 2022"]
[White "Ernst, Sipke"]
[Black "Caruana, Fabiano"]
[WhiteFideId "1004689"]
[BlackFideId "2020009"]
[WhiteElo "2438"]
[BlackElo "2847"]
[Result "1-0"]
[Round "02"]
[TimeControl "180+1"]
[Date "2022.10.26"]
[WhiteClock "0:00:29"]
[BlackClock "0:01:19"]

1. d4 {[%clk 0:03:00]}  Nf6 {[%clk 0:02:59]} 2. c4 {[%clk 0:03:01]}  e6 {[%clk 0:02:59]} 3. g3 {[%clk 0:03:01]}  c5 {[%clk 0:02:59]} 4. Nf3 {[%clk 0:03:01]}  cxd4 {[%clk 0:02:59]} 5. Nxd4 {[%clk 0:03:02]}  a6 {[%clk 0:02:59]} 6. Bg2 {[%clk 0:03:02]}  Qc7 {[%clk 0:03:00]} 7. Nd2 {[%clk 0:03:02]}  Nc6 {[%clk 0:03:00]} 8. Nxc6 {[%clk 0:02:59]}  dxc6 {[%clk 0:03:01]} 9. O-O {[%clk 0:02:59]}  e5 {[%clk 0:03:00]} 10. b3 {[%clk 0:02:59]}  Bc5 {[%clk 0:03:00]} 11. Bb2 {[%clk 0:02:58]}  O-O {[%clk 0:03:00]} 12. Qc2 {[%clk 0:02:58]}  Re8 {[%clk 0:03:00]} 13. Ne4 {[%clk 0:02:57]}  Nxe4 {[%clk 0:03:00]} 14. Bxe4 {[%clk 0:02:57]}  h6 {[%clk 0:03:01]} 15. Rad1 {[%clk 0:02:47]}  a5 {[%clk 0:03:00]} 16. Bc3 {[%clk 0:02:44]}  Bh3 {[%clk 0:02:59]} 17. Rfe1 {[%clk 0:02:42]}  Qe7 {[%clk 0:02:54]} 18. Bf5 {[%clk 0:02:18]}  Bxf5 {[%clk 0:02:31]} 19. Qxf5 {[%clk 0:02:19]}  g6 {[%clk 0:02:27]} 20. Qd7 {[%clk 0:01:58]}  Qf6 {[%clk 0:02:21]} 21. e3 {[%clk 0:01:53]}  Re7 {[%clk 0:02:20]} 22. Qg4 {[%clk 0:01:46]}  h5 {[%clk 0:02:19]} 23. Qe4 {[%clk 0:01:45]}  Qe6 {[%clk 0:02:18]} 24. Rd2 {[%clk 0:01:29]}  Qg4 {[%clk 0:02:16]} 25. Qxg4 {[%clk 0:01:20]}  hxg4 {[%clk 0:02:17]} 26. h3 {[%clk 0:01:21]}  gxh3 {[%clk 0:02:16]} 27. Kh2 {[%clk 0:01:21]}  Bb4 {[%clk 0:02:16]} 28. Rc1 {[%clk 0:01:10]}  f6 {[%clk 0:02:16]} 29. Kxh3 {[%clk 0:01:09]}  Kf7 {[%clk 0:02:17]} 30. a4 {[%clk 0:01:04]}  Bxc3 {[%clk 0:02:03]} 31. Rxc3 {[%clk 0:01:04]}  Ra6 {[%clk 0:01:52]} 32. Rd6 {[%clk 0:01:02]}  Rb6 {[%clk 0:01:51]} 33. g4 {[%clk 0:00:57]}  g5 {[%clk 0:01:39]} 34. Kg3 {[%clk 0:00:55]}  e4 {[%clk 0:01:37]} 35. Rd4 {[%clk 0:00:43]}  Rb4 {[%clk 0:01:36]} 36. Kg2 {[%clk 0:00:34]}  Kg6 {[%clk 0:01:30]} 37. Rd6 {[%clk 0:00:33]}  Rh7 {[%clk 0:01:25]} 38. Re6 {[%clk 0:00:31]}  Rh1 {[%clk 0:01:19]} 39. Kxh1 {[%clk 0:00:29]} 1-0


[Site "https://www.chess.com"]

[Event "Titled Tuesday Blitz October 25 Late 2022"]
[White "Firouzja, Alireza"]
[Black "Czernek, Tymon"]
[WhiteFideId "12573981"]
[BlackFideId "1199510"]
[WhiteElo "2903"]
[BlackElo "2240"]
[Result "1-0"]
[Round "02"]
[TimeControl "180+1"]
[Date "2022.10.26"]
[WhiteClock "0:01:16"]
[BlackClock "0:00:39"]

1. d4 {[%clk 0:03:00]}  Nf6 {[%clk 0:02:57]} 2. c4 {[%clk 0:03:00]}  g6 {[%clk 0:02:57]} 3. Nf3 {[%clk 0:03:00]}  Bg7 {[%clk 0:02:58]} 4. g3 {[%clk 0:03:01]}  O-O {[%clk 0:02:58]} 5. Bg2 {[%clk 0:03:02]}  d6 {[%clk 0:02:58]} 6. O-O {[%clk 0:03:02]}  Nbd7 {[%clk 0:02:55]} 7. Nc3 {[%clk 0:03:02]}  c6 {[%clk 0:02:55]} 8. e4 {[%clk 0:03:01]}  Qc7 {[%clk 0:02:55]} 9. h3 {[%clk 0:03:01]}  e5 {[%clk 0:02:55]} 10. Be3 {[%clk 0:03:00]}  Re8 {[%clk 0:02:52]} 11. d5 {[%clk 0:02:59]}  Kh8 {[%clk 0:02:39]} 12. Rc1 {[%clk 0:02:58]}  Ng8 {[%clk 0:02:38]} 13. b4 {[%clk 0:02:58]}  f5 {[%clk 0:02:35]} 14. dxc6 {[%clk 0:02:55]}  bxc6 {[%clk 0:02:34]} 15. b5 {[%clk 0:02:56]}  Ndf6 {[%clk 0:02:29]} 16. exf5 {[%clk 0:02:54]}  gxf5 {[%clk 0:02:28]} 17. bxc6 {[%clk 0:02:53]}  Ba6 {[%clk 0:01:59]} 18. Nb5 {[%clk 0:02:51]}  Bxb5 {[%clk 0:01:59]} 19. cxb5 {[%clk 0:02:52]}  d5 {[%clk 0:01:59]} 20. Nh4 {[%clk 0:02:46]}  f4 {[%clk 0:01:53]} 21. Bc5 {[%clk 0:02:44]}  Nh6 {[%clk 0:01:46]} 22. gxf4 {[%clk 0:02:40]}  exf4 {[%clk 0:01:47]} 23. Bd4 {[%clk 0:02:37]}  Rg8 {[%clk 0:01:43]} 24. Kh1 {[%clk 0:02:37]}  Ne4 {[%clk 0:01:36]} 25. Bxg7+ {[%clk 0:02:30]}  Qxg7 {[%clk 0:01:36]} 26. Qxd5 {[%clk 0:02:27]}  Nf6 {[%clk 0:01:30]} 27. Qe5 {[%clk 0:02:19]}  Rae8 {[%clk 0:01:29]} 28. Qxf4 {[%clk 0:02:17]}  Nh5 {[%clk 0:01:20]} 29. Qf3 {[%clk 0:02:09]}  Qg5 {[%clk 0:01:19]} 30. Rc4 {[%clk 0:01:56]}  Ref8 {[%clk 0:01:19]} 31. Qc3+ {[%clk 0:01:51]}  Nf6 {[%clk 0:00:56]} 32. c7 {[%clk 0:01:47]}  Nf5 {[%clk 0:00:56]} 33. c8=Q {[%clk 0:01:43]}  Rxc8 {[%clk 0:00:54]} 34. Rxc8 {[%clk 0:01:44]}  Nxh4 {[%clk 0:00:54]} 35. Rxg8+ {[%clk 0:01:40]}  Kxg8 {[%clk 0:00:55]} 36. Rg1 {[%clk 0:01:40]}  Qf4 {[%clk 0:00:55]} 37. Bd5+ {[%clk 0:01:33]}  Kf8 {[%clk 0:00:55]} 38. Qc5+ {[%clk 0:01:33]}  Ke8 {[%clk 0:00:54]} 39. Re1+ {[%clk 0:01:34]}  Kd8 {[%clk 0:00:52]} 40. Qe7+ {[%clk 0:01:33]}  Kc8 {[%clk 0:00:52]} 41. Qb7+ {[%clk 0:01:26]}  Kd8 {[%clk 0:00:51]} 42. Qa8+ {[%clk 0:01:24]}  Kd7 {[%clk 0:00:48]} 43. Qxa7+ {[%clk 0:01:22]}  Kd8 {[%clk 0:00:44]} 44. Qb6+ {[%clk 0:01:18]}  Kd7 {[%clk 0:00:42]} 45. Bc6+ {[%clk 0:01:17]}  Kd6 {[%clk 0:00:39]} 46. Qb8+ {[%clk 0:01:16]} 1-0


[Site "https://www.chess.com"]

[Event "Titled Tuesday Blitz October 25 Late 2022"]
[White "Garagulya, Konstantin"]
[Black "Maranhao,Jose Renato Ruiz"]
[WhiteFideId "4128931"]
[BlackFideId "2135175"]
[WhiteElo "2329"]
[BlackElo "1970"]
[Result "1-0"]
[Round "02"]
[TimeControl "180+1"]
[Date "2022.10.26"]
[WhiteClock "0:00:59"]
[BlackClock "0:00:09"]

1. d4 {[%clk 0:02:54]}  b6 {[%clk 0:02:45]} 2. e4 {[%clk 0:02:53]}  Bb7 {[%clk 0:02:46]} 3. Bd3 {[%clk 0:02:53]}  g6 {[%clk 0:02:46]} 4. Nf3 {[%clk 0:02:54]}  Bg7 {[%clk 0:02:47]} 5. O-O {[%clk 0:02:54]}  d6 {[%clk 0:02:48]} 6. Re1 {[%clk 0:02:54]}  e6 {[%clk 0:02:49]} 7. a4 {[%clk 0:02:54]}  a5 {[%clk 0:02:49]} 8. Nbd2 {[%clk 0:02:52]}  Nd7 {[%clk 0:02:49]} 9. Bb5 {[%clk 0:02:50]}  Ne7 {[%clk 0:02:49]} 10. c3 {[%clk 0:02:51]}  O-O {[%clk 0:02:49]} 11. h3 {[%clk 0:02:49]}  h6 {[%clk 0:02:48]} 12. Nf1 {[%clk 0:02:49]}  Kh7 {[%clk 0:02:47]} 13. Qb3 {[%clk 0:02:49]}  c5 {[%clk 0:02:39]} 14. Ng3 {[%clk 0:02:48]}  cxd4 {[%clk 0:02:37]} 15. cxd4 {[%clk 0:02:48]}  Rc8 {[%clk 0:02:31]} 16. Bxd7 {[%clk 0:02:41]}  Qxd7 {[%clk 0:02:29]} 17. Qxb6 {[%clk 0:02:41]}  Qc7 {[%clk 0:02:24]} 18. Qxc7 {[%clk 0:02:40]}  Rxc7 {[%clk 0:02:25]} 19. Bd2 {[%clk 0:02:40]}  Rc2 {[%clk 0:02:19]} 20. Bxa5 {[%clk 0:02:20]}  Rxb2 {[%clk 0:02:08]} 21. Bc7 {[%clk 0:02:19]}  d5 {[%clk 0:01:57]} 22. e5 {[%clk 0:02:16]}  Ra8 {[%clk 0:01:49]} 23. a5 {[%clk 0:02:12]}  Nc6 {[%clk 0:01:43]} 24. Reb1 {[%clk 0:02:03]}  Rb4 {[%clk 0:01:16]} 25. Rxb4 {[%clk 0:01:50]}  Nxb4 {[%clk 0:01:11]} 26. Ne2 {[%clk 0:01:39]}  Bf8 {[%clk 0:00:45]} 27. Nc3 {[%clk 0:01:38]}  Ba6 {[%clk 0:00:38]} 28. Na4 {[%clk 0:01:36]}  Bc4 {[%clk 0:00:30]} 29. Nb6 {[%clk 0:01:24]}  Ra7 {[%clk 0:00:29]} 30. Bd6 {[%clk 0:01:22]}  Bxd6 {[%clk 0:00:23]} 31. exd6 {[%clk 0:01:23]}  Kg7 {[%clk 0:00:19]} 32. d7 {[%clk 0:01:19]}  Nc6 {[%clk 0:00:16]} 33. Ne5 {[%clk 0:01:20]}  Nd8 {[%clk 0:00:11]} 34. f4 {[%clk 0:01:01]}  Kf8 {[%clk 0:00:10]} 35. Kf2 {[%clk 0:01:00]}  Ke7 {[%clk 0:00:09]} 36. Nc8+ {[%clk 0:00:59]} 1-0


[Site "https://www.chess.com"]

[Event "Titled Tuesday Blitz October 25 Late 2022"]
[White "Garayev, Kanan"]
[Black "Jaferian, Koosha"]
[WhiteFideId "13406671"]
[BlackFideId "12507440"]
[WhiteElo "2244"]
[BlackElo "2127"]
[Result "1-0"]
[Round "02"]
[TimeControl "180+1"]
[Date "2022.10.26"]
[WhiteClock "0:00:21"]
[BlackClock "0:00:07"]

1. d4 {[%clk 0:03:00]}  Nf6 {[%clk 0:02:59]} 2. c4 {[%clk 0:03:01]}  e6 {[%clk 0:03:00]} 3. g3 {[%clk 0:03:01]}  d5 {[%clk 0:03:00]} 4. Bg2 {[%clk 0:03:01]}  Bb4+ {[%clk 0:03:00]} 5. Nd2 {[%clk 0:03:01]}  O-O {[%clk 0:03:00]} 6. Nf3 {[%clk 0:03:01]}  c6 {[%clk 0:03:01]} 7. O-O {[%clk 0:03:01]}  Nbd7 {[%clk 0:03:01]} 8. Qc2 {[%clk 0:03:01]}  b6 {[%clk 0:03:02]} 9. e4 {[%clk 0:03:01]}  Ba6 {[%clk 0:03:01]} 10. b3 {[%clk 0:02:53]}  Rc8 {[%clk 0:02:59]} 11. e5 {[%clk 0:02:50]}  Ne8 {[%clk 0:02:58]} 12. a3 {[%clk 0:02:39]}  Be7 {[%clk 0:02:57]} 13. Bb2 {[%clk 0:02:35]}  c5 {[%clk 0:02:52]} 14. Rfd1 {[%clk 0:02:31]}  Bb7 {[%clk 0:02:38]} 15. Rac1 {[%clk 0:02:25]}  dxc4 {[%clk 0:02:34]} 16. Qxc4 {[%clk 0:02:16]}  cxd4 {[%clk 0:02:33]} 17. Qxd4 {[%clk 0:02:16]}  Bc5 {[%clk 0:02:32]} 18. Qf4 {[%clk 0:02:12]}  Nc7 {[%clk 0:02:13]} 19. Ne4 {[%clk 0:01:59]}  Nd5 {[%clk 0:02:10]} 20. Qg4 {[%clk 0:01:55]}  Be7 {[%clk 0:02:09]} 21. Nd6 {[%clk 0:01:35]}  Rxc1 {[%clk 0:02:00]} 22. Rxc1 {[%clk 0:01:33]}  Ba6 {[%clk 0:02:01]} 23. b4 {[%clk 0:01:19]}  Be2 {[%clk 0:01:55]} 24. Rc8 {[%clk 0:01:09]}  Qxc8 {[%clk 0:01:56]} 25. Nxc8 {[%clk 0:01:10]}  Rxc8 {[%clk 0:01:56]} 26. Qe4 {[%clk 0:01:08]}  Bb5 {[%clk 0:01:48]} 27. Nd4 {[%clk 0:01:06]}  Bc4 {[%clk 0:01:42]} 28. Bf1 {[%clk 0:01:02]}  Bf8 {[%clk 0:01:32]} 29. Nf3 {[%clk 0:00:58]}  b5 {[%clk 0:01:24]} 30. Ng5 {[%clk 0:00:54]}  g6 {[%clk 0:01:24]} 31. Qh4 {[%clk 0:00:54]}  h5 {[%clk 0:01:20]} 32. Qd4 {[%clk 0:00:46]}  a6 {[%clk 0:01:09]} 33. Qa7 {[%clk 0:00:43]}  Rc7 {[%clk 0:00:55]} 34. Qxa6 {[%clk 0:00:39]}  Bg7 {[%clk 0:00:55]} 35. Qa8+ {[%clk 0:00:36]}  Nf8 {[%clk 0:00:54]} 36. Bd4 {[%clk 0:00:34]}  h4 {[%clk 0:00:44]} 37. Bc5 {[%clk 0:00:29]}  hxg3 {[%clk 0:00:23]} 38. hxg3 {[%clk 0:00:29]}  Bxf1 {[%clk 0:00:23]} 39. Kxf1 {[%clk 0:00:29]}  Rd7 {[%clk 0:00:16]} 40. Bd6 {[%clk 0:00:24]}  Nb6 {[%clk 0:00:12]} 41. Qc6 {[%clk 0:00:25]}  Nc4 {[%clk 0:00:08]} 42. Ne4 {[%clk 0:00:20]}  Bxe5 {[%clk 0:00:07]} 43. Bxe5 {[%clk 0:00:20]}  Nxe5 {[%clk 0:00:07]} 44. Qxb5 {[%clk 0:00:18]}  Rd5 {[%clk 0:00:08]} 45. Nf6+ {[%clk 0:00:18]}  Kg7 {[%clk 0:00:07]} 46. Nxd5 {[%clk 0:00:19]}  exd5 {[%clk 0:00:07]} 47. Qxd5 {[%clk 0:00:19]}  Nfd7 {[%clk 0:00:08]} 48. a4 {[%clk 0:00:19]}  Kf6 {[%clk 0:00:08]} 49. a5 {[%clk 0:00:19]}  Ke7 {[%clk 0:00:09]} 50. a6 {[%clk 0:00:19]}  Ng4 {[%clk 0:00:07]} 51. Qe4+ {[%clk 0:00:19]}  Nge5 {[%clk 0:00:06]} 52. a7 {[%clk 0:00:19]}  Nb6 {[%clk 0:00:06]} 53. Qxe5+ {[%clk 0:00:19]}  Kf8 {[%clk 0:00:06]} 54. Qb8+ {[%clk 0:00:20]}  Kg7 {[%clk 0:00:07]} 55. Qxb6 {[%clk 0:00:21]} 1-0


[Site "https://www.chess.com"]

[Event "Titled Tuesday Blitz October 25 Late 2022"]
[White "Gogolev, Artem"]
[Black "Vasquez Schroeder, Rodrigo"]
[WhiteFideId "4116615"]
[BlackFideId "3400042"]
[WhiteElo "2178"]
[BlackElo "2577"]
[Result "0-1"]
[Round "02"]
[TimeControl "180+1"]
[Date "2022.10.26"]
[WhiteClock "0:00:20"]
[BlackClock "0:00:36"]

1. d4 {[%clk 0:03:00]}  Nf6 {[%clk 0:02:58]} 2. c4 {[%clk 0:02:52]}  e6 {[%clk 0:02:58]} 3. g3 {[%clk 0:02:50]}  c5 {[%clk 0:02:57]} 4. Nf3 {[%clk 0:02:48]}  cxd4 {[%clk 0:02:57]} 5. Nxd4 {[%clk 0:02:49]}  d5 {[%clk 0:02:58]} 6. Bg2 {[%clk 0:02:43]}  e5 {[%clk 0:02:58]} 7. Nf3 {[%clk 0:02:34]}  d4 {[%clk 0:02:57]} 8. O-O {[%clk 0:02:29]}  Nc6 {[%clk 0:02:57]} 9. e3 {[%clk 0:02:25]}  Be7 {[%clk 0:02:56]} 10. exd4 {[%clk 0:02:25]}  exd4 {[%clk 0:02:57]} 11. Bf4 {[%clk 0:02:15]}  Be6 {[%clk 0:02:41]} 12. Nbd2 {[%clk 0:01:50]}  O-O {[%clk 0:02:39]} 13. Re1 {[%clk 0:01:44]}  Re8 {[%clk 0:02:36]} 14. a3 {[%clk 0:01:40]}  a5 {[%clk 0:02:35]} 15. Ne5 {[%clk 0:01:36]}  Qb6 {[%clk 0:02:31]} 16. Qb3 {[%clk 0:01:30]}  Qa6 {[%clk 0:02:13]} 17. Rac1 {[%clk 0:01:14]}  a4 {[%clk 0:01:58]} 18. Qd3 {[%clk 0:01:09]}  Rad8 {[%clk 0:01:54]} 19. c5 {[%clk 0:01:02]}  Qxd3 {[%clk 0:01:48]} 20. Nxd3 {[%clk 0:01:03]}  Bd5 {[%clk 0:01:48]} 21. Ne4 {[%clk 0:00:59]}  Nxe4 {[%clk 0:01:38]} 22. Bxe4 {[%clk 0:01:00]}  Bxe4 {[%clk 0:01:23]} 23. Rxe4 {[%clk 0:01:01]}  g5 {[%clk 0:01:23]} 24. Bc7 {[%clk 0:00:50]}  Rd7 {[%clk 0:01:17]} 25. Bd6 {[%clk 0:00:48]}  Red8 {[%clk 0:01:15]} 26. Bxe7 {[%clk 0:00:46]}  Rxe7 {[%clk 0:01:16]} 27. Rxe7 {[%clk 0:00:45]}  Nxe7 {[%clk 0:01:16]} 28. Rc4 {[%clk 0:00:45]}  Nc6 {[%clk 0:01:11]} 29. Rxa4 {[%clk 0:00:44]}  f6 {[%clk 0:01:03]} 30. Kf1 {[%clk 0:00:44]}  Kf7 {[%clk 0:01:00]} 31. Ke2 {[%clk 0:00:44]}  Ke6 {[%clk 0:01:00]} 32. Rc4 {[%clk 0:00:41]}  Kd5 {[%clk 0:01:00]} 33. Rc1 {[%clk 0:00:39]}  Ne5 {[%clk 0:00:58]} 34. Nb4+ {[%clk 0:00:32]}  Ke4 {[%clk 0:00:58]} 35. Re1 {[%clk 0:00:30]}  d3+ {[%clk 0:00:50]} 36. Kd2+ {[%clk 0:00:30]}  Kf3 {[%clk 0:00:39]} 37. Re3+ {[%clk 0:00:27]}  Kg2 {[%clk 0:00:39]} 38. b3 {[%clk 0:00:26]}  Kxh2 {[%clk 0:00:38]} 39. Nxd3 {[%clk 0:00:24]}  Kg2 {[%clk 0:00:36]} 40. b4 {[%clk 0:00:22]}  Nc4+ {[%clk 0:00:36]} 41. Ke2 {[%clk 0:00:21]}  Nxe3 {[%clk 0:00:36]} 42. Kxe3 {[%clk 0:00:22]}  Re8+ {[%clk 0:00:36]} 43. Kd4 {[%clk 0:00:22]}  h5 {[%clk 0:00:37]} 44. b5 {[%clk 0:00:22]}  Kf3 {[%clk 0:00:36]} 45. c6 {[%clk 0:00:22]}  bxc6 {[%clk 0:00:37]} 46. bxc6 {[%clk 0:00:23]}  h4 {[%clk 0:00:37]} 47. gxh4 {[%clk 0:00:23]}  gxh4 {[%clk 0:00:38]} 48. c7 {[%clk 0:00:18]}  h3 {[%clk 0:00:38]} 49. Nc5 {[%clk 0:00:19]}  h2 {[%clk 0:00:36]} 50. Ne6 {[%clk 0:00:20]} 0-1


[Site "https://www.chess.com"]